[Event "WTCC-65 2018"]
[Site "Radebeul"]
[Date "2018.07.09"]
[Round "3"]
[White "Donchenko, Anatoly"]
[Black "Krauseneck, Peter"]
[Result "0-1"]
[ECO "A81"]
[WhiteElo "2301"]
[BlackElo "2147"]
[Annotator "NA"]
[PlyCount "136"]
[EventDate "2018.07.07"]
[EventType "team-tourn"]
[EventCountry "GER"]
[SourceTitle "playchess.com"]
[Source "ChessBase"]
[SourceQuality "1"]
[TimeControl "40/5400+30:1800+30"]

1. d4 {[%emt 0:00:00]} e6 {[%emt 0:00:00]} 2. g3 {[%emt 0:00:00]} f5 {[%emt 0:00:00]} 3. Bg2 {[%emt 0:00:04]} Nf6 {[%emt 0:00:00]} 4. Nh3 {[%emt 0:00:49]} d6 {[%emt 0:03:51]} 5. O-O {[%emt 0:01:40]} Be7 {[%emt 0:04:32]} 6. c4 {[%emt 0:01:13]} O-O {[%emt 0:00:14]} 7. Nc3 {[%emt 0:00:45]} e5 {[%emt 0:03:07]} 8. dxe5 {[%emt 0:02:18]} dxe5 {[%emt 0:00:14] LiveBook: 15 Games} 9. e4 {A91: Classical Dutch: Early Deviations} Qxd1 {[%emt 0:01:50]} (9... Nc6 10. Be3 Qxd1 11. Raxd1 Nxe4 12. Nxe4 fxe4 13. Ng5 Bg4 14. Rd5 Bxg5 15. Bxg5 Nd4 16. Rxe5 Nf3+ 17. Bxf3 Bxf3 {½-½ (41) Socko,B (2613)-Van Dooren,D (2284) Maastricht 2015}) 10. Rxd1 {[%emt 0:00:14]} fxe4 $146 {[%emt 0:01:15]} ({Predecessor:} 10... Nxe4 11. Nxe4 fxe4 12. Ng5 Bg4 13. Re1 Nc6 14. Bxe4 Nd4 15. Nxh7 Bb4 16. Nxf8 Bxe1 {½-½ (44) Denis,L (2200)-Roos,J (2350) France 1995}) 11. Ng5 {[%emt 0:00:31]} Nc6 {[%emt 0:00:57]} 12. Ngxe4 {[%emt 0:03:47]} Nxe4 {[%emt 0:02:18]} 13. Nxe4 {[%emt 0:01:40]} Nd4 {[%emt 0:01:22]} 14. Be3 {[%emt 0:04:31]} Bg4 {[%emt 0:10:43]} 15. Rd3 {[%emt 0:02:46]} Be2 {[%emt 0:09:42]} 16. Rd2 {[%emt 0:08:36]} Bb4 {[%emt 0:00:38]} 17. Nc3 {[%emt 0:08:38]} Nf3+ {[%emt 0:05:16]} 18. Bxf3 {[%emt 0:00:14]} Bxf3 {[%emt 0:00:02]} 19. h3 {[%emt 0:05:42]} a5 {[%emt 0:08:54]} 20. Rd3 {[%emt 0:05:30]} Rad8 {[%emt 0:03:10]} 21. Nd5 {[%emt 0:03:20]} Be2 {[%emt 0:01:13]} 22. Nxb4 {[%emt 0:03:07]} Bxd3 {[%emt 0:00:42]} 23. Nxd3 {[%emt 0:00:14]} Rxd3 {[%emt 0:00:02]} 24. Rc1 {[%emt 0:01:36]} Rfd8 {[%emt 0:00:21]} 25. Rc2 {[%emt 0:00:34]} a4 {[%emt 0:01:42]} 26. Kf1 {[%emt 0:00:28]} Kf7 {[%emt 0:00:05]} 27. Ke2 {[%emt 0:00:13]} Ke6 {[%emt 0:00:21]} 28. c5 {[%emt 0:03:19]} Rd1 {[%emt 0:02:31]} 29. Rc4 {[%emt 0:00:36]} Rb1 {[%emt 0:00:05]} 30. Rxa4 {[%emt 0:02:01]} Rxb2+ {[%emt 0:00:12]} 31. Kf3 {[%emt 0:00:02]} Kd5 {[%emt 0:04:54]} 32. g4 {[%emt 0:03:00]} Rf8+ {[%emt 0:03:55]} 33. Kg3 {[%emt 0:00:11]} h6 {[%emt 0:04:34]} 34. h4 {[%emt 0:00:59]} Rf6 {[%emt 0:01:45]} 35. Ra8 {[%emt 0:00:33]} g6 {[%emt 0:05:49]} 36. Rh8 {[%emt 0:07:02]} Ke4 {[%emt 0:01:11]} 37. Kg2 {[%emt 0:01:30]} Rf3 {[%emt 0:04:02]} 38. c6 {[%emt 0:04:16]} b6 {[%emt 0:04:50]} 39. Kg1 {[%emt 0:02:27]} Rh3 {[%emt 0:07:41]} 40. h5 {[%emt 0:03:16]} gxh5 {[%emt 0:01:38]} 41. gxh5 {[%emt 0:30:03]} Rxh5 {[%emt 0:34:11]} 42. Rh7 {[%emt 0:00:02]} Rf5 {[%emt 0:00:00]} 43. Kg2 {[%emt 0:00:00]} Rf3 {[%emt 0:00:00]} 44. Kg1 {[%emt 0:00:00]} Rf6 {[%emt 0:00:00]} 45. Rxc7 {[%emt 0:00:00]} Rc2 {[%emt 0:00:00]} 46. Rb7 {[%emt 0:00:00]} Rfxc6 {[%emt 0:00:00]} 47. a4 {[%emt 0:00:00]} Ra2 {[%emt 0:00:00]} 48. Bxb6 {[%emt 0:00:00]} Rxa4 {[%emt 0:00:00]} 49. Be3 {[%emt 0:00:00]} Ra1+ {[%emt 0:00:00]} 50. Kh2 {[%emt 0:00:00]} Rg6 {[%emt 0:00:00]} 51. Ba7 {[%emt 0:00:00]} Ra2 {[%emt 0:00:00]} 52. Rb4+ {[%emt 0:00:00]} Kf3 {[%emt 0:00:00]} 53. Rb3+ {[%emt 0:00:00]} Kf4 {[%emt 0:00:00]} 54. Rb4+ {[%emt 0:00:00]} e4 {[%emt 0:00:00]} 55. Rb7 {[%emt 0:00:00]} Ra5 {[%emt 0:00:00]} 56. Bb8+ {[%emt 0:00:00]} Kf3 {[%emt 0:00:00]} 57. Rf7+ {[%emt 0:00:00]} Ke2 {[%emt 0:00:00]} 58. Bg3 {[%emt 0:00:00]} Kf1 {[%emt 0:00:54]} 59. Rf4 {[%emt 0:01:23]} Rh5+ {[%emt 0:02:53]} 60. Bh4 {[%emt 0:00:10]} Rg2+ $2 {[%emt 0:02:05]} (60... Re5 61. Kh3 Ke2) 61. Kh3 {[%emt 0:00:01]} Re5 {[%emt 0:00:56]} 62. Bf6 {[%emt 0:01:35]} Re6 {[%emt 0:00:11]} 63. Bd4 {[%emt 0:03:09]} h5 {[%emt 0:00:57]} 64. Rh4 {[%emt 0:10:47]} Rxf2 {[%emt 0:01:24]} 65. Bxf2 {[%emt 0:00:21]} Kxf2 {[%emt 0:00:02]} 66. Rf4+ {[%emt 0:03:55]} Kg1 {[%emt 0:00:11]} 67. Rf8 {[%emt 0:00:42]} e3 {[%emt 0:00:14]} 68. Rg8+ {[%emt 0:00:02]} Kh1 {[%emt 0:00:36]} 0-1

[Event "WTCC-65 2018"]
[Site "Radebeul"]
[Date "2018.07.09"]
[Round "3"]
[White "Huss, Andreas"]
[Black "Zimmermann, Rolf"]
[Result "1/2-1/2"]
[ECO "D63"]
[WhiteElo "2276"]
[BlackElo "2165"]
[Annotator "NA"]
[PlyCount "114"]
[EventDate "2018.07.07"]
[EventType "team-tourn"]
[EventCountry "GER"]
[SourceTitle "playchess.com"]
[Source "ChessBase"]
[SourceQuality "1"]
[TimeControl "40/5400+30:1800+30"]

1. d4 {[%emt 0:00:00]} d5 {[%emt 0:00:00]} 2. c4 {[%emt 0:00:00]} e6 {[%emt 0:00:00]} 3. Nf3 {[%emt 0:00:00]} Nf6 {[%emt 0:00:07]} 4. Nc3 {[%emt 0:00:01]} Be7 {[%emt 0:00:39]} 5. Bg5 {[%emt 0:00:10] LiveBook: 12112 Games} O-O {[%emt 0:00:16]} 6. e3 {[%emt 0:00:18]} c6 {[%emt 0:00:38]} 7. Rc1 {[%emt 0:00:20]} Nbd7 {[%emt 0:00:54]} 8. a3 {[%emt 0:00:14]} b6 {[%emt 0:01:44] D63: Damengambit (Hauptvariante mit 7.Tc1)} (8... h6 9. Bh4 Ne4 10. Bxe7 Nxc3 11. Rxc3 Qxe7 12. Qc2 Re8 13. Be2 dxc4 14. Rxc4 e5 15. O-O e4 16. Nd2 Nf6 17. Rc5 Nd7 18. Rh5 Qe6 19. f3 exf3 20. Rxf3 {1-0 (53) Laznicka,V (2674)-Kryvoruchko,Y (2679) Czechia 2012}) 9. Bd3 {[%emt 0:04:32]} dxc4 {[%emt 0:01:52]} 10. Bxc4 {[%emt 0:00:11]} Nd5 $146 {[%emt 0:00:08]} ({Vorgänger:} 10... h6 11. Bh4 Nh5 12. Bxe7 Qxe7 13. Ne4 Nhf6 14. Bd3 Bb7 15. b4 Rfc8 16. Ne5 Nxe5 17. dxe5 Nxe4 18. Bxe4 {0-1 (24) Schucman,R (1696)-De Mello,J Sao Paulo 2013}) 11. Bxe7 {[%emt 0:01:37]} Nxc3 {[%emt 0:09:03]} 12. Rxc3 {[%emt 0:07:18]} Qxe7 {[%emt 0:00:13]} 13. Qc2 {[%emt 0:01:16]} Bb7 {[%emt 0:18:39]} 14. Bd3 {[%emt 0:03:56]} f5 {[%emt 0:13:07]} 15. O-O {[%emt 0:01:02]} c5 {[%emt 0:02:50]} 16. Be2 {[%emt 0:07:48]} Rac8 {[%emt 0:05:57]} 17. Rc1 {[%emt 0:11:03]} g5 {[%emt 0:04:17]} ({Better is} 17... Nf6 $11) 18. dxc5 {[%emt 0:10:06]} Be4 {[%emt 0:15:15]} 19. Qd1 {[%emt 0:16:57]} Rxc5 {[%emt 0:00:35]} 20. b4 {[%emt 0:03:31]} Rxc3 {[%emt 0:00:31]} 21. Rxc3 {[%emt 0:00:03]} Bxf3 $1 {[%emt 0:00:21]} 22. Bxf3 {[%emt 0:02:11]} Ne5 {[%emt 0:00:51]} 23. Be2 {[%emt 0:00:52]} Rd8 {[%emt 0:00:27]} 24. Qc2 {[%emt 0:03:20]} Qd6 {[%emt 0:01:27]} 25. h3 {[%emt 0:05:15]} Qd2 {[%emt 0:02:29]} 26. Kf1 {[%emt 0:02:09]} Qxc2 {[%emt 0:00:17]} 27. Rxc2 {[%emt 0:00:08]} Rd7 {[%emt 0:00:04]} 28. f4 {[%emt 0:04:35]} gxf4 {[%emt 0:00:27]} 29. exf4 {[%emt 0:00:02]} Ng6 {[%emt 0:00:00]} 30. g3 {[%emt 0:00:00]} Kg7 {[%emt 0:02:22]} 31. Bb5 {[%emt 0:02:52]} Re7 {[%emt 0:00:15]} 32. Bd3 {[%emt 0:01:31]} Kf6 {[%emt 0:02:22]} 33. Rc6 {[%emt 0:00:51]} Kg7 {[%emt 0:04:56]} 34. h4 {[%emt 0:05:50]} h6 {[%emt 0:02:45]} 35. Kf2 {[%emt 0:01:43]} Nf8 {[%emt 0:00:06]} 36. Ke3 {[%emt 0:01:05]} Rd7 {[%emt 0:00:58]} 37. a4 {[%emt 0:01:37]} Kf7 {[%emt 0:02:01]} 38. a5 {[%emt 0:00:37]} bxa5 {[%emt 0:00:26]} 39. bxa5 {[%emt 0:00:02]} Ke7 {[%emt 0:00:01]} 40. a6 {[%emt 0:01:13]} Kd8 {[%emt 0:04:21]} 41. Rc5 {[%emt 0:08:55]} Rc7 {[%emt 0:05:20]} 42. Rb5 {[%emt 0:02:05]} Nd7 {[%emt 0:01:15]} 43. Kd4 {[%emt 0:00:26]} Ke7 {[%emt 0:00:17]} 44. Rb7 {[%emt 0:07:22]} Rxb7 {[%emt 0:03:09]} 45. axb7 {[%emt 0:00:09]} Kd6 {[%emt 0:00:09]} 46. Bb5 {[%emt 0:00:29]} Nb8 {[%emt 0:00:06]} 47. h5 {[%emt 0:02:15]} a5 {[%emt 0:01:02]} 48. Ba4 {[%emt 0:01:48]} Kc7 $2 {[%emt 0:00:21]} (48... Na6 49. Be8 Kc7) 49. Ke5 {[%emt 0:00:17]} Na6 {[%emt 0:00:05]} 50. Kf6 {[%emt 0:02:09]} Nc5 {[%emt 0:01:41]} 51. Bb5 {[%emt 0:02:45]} Ne4+ {[%emt 0:00:49]} 52. Kg6 {[%emt 0:00:19]} Nxg3 {[%emt 0:02:41]} 53. Kxh6 {[%emt 0:00:18]} Kxb7 {[%emt 0:02:54]} 54. Kg6 {[%emt 0:00:34]} Nxh5 {[%emt 0:00:01]} 55. Kxh5 {[%emt 0:00:11]} Kc7 {[%emt 0:00:33]} 56. Kg5 {[%emt 0:00:27]} Kd6 {[%emt 0:00:02]} 57. Kf6 $11 {[%emt 0:00:24]} Kd5 {[%emt 0:00:32] Ke5+ Ke4+} 1/2-1/2

[Event "WTCC-65 2018"]
[Site "Radebeul"]
[Date "2018.07.09"]
[Round "3"]
[White "Povah, Nigel E"]
[Black "Steedman, James"]
[Result "1-0"]
[ECO "A45"]
[WhiteElo "2245"]
[BlackElo "2132"]
[Annotator "NA"]
[PlyCount "57"]
[EventDate "2018.07.07"]
[EventType "team-tourn"]
[EventCountry "GER"]
[SourceTitle "playchess.com"]
[Source "ChessBase"]
[SourceQuality "1"]
[TimeControl "40/5400+30:1800+30"]

1. d4 {[%emt 0:00:00]} Nf6 {[%emt 0:00:00]} 2. Bg5 {[%emt 0:00:00]} d5 {[%emt 0:00:43]} 3. e3 {[%emt 0:04:10]} c5 {[%emt 0:02:28]} 4. c3 {[%emt 0:06:07]} Qb6 {[%emt 0:04:10]} 5. Qc2 {[%emt 0:03:59]} cxd4 {[%emt 0:07:57]} 6. exd4 {[%emt 0:00:35]} Nc6 {[%emt 0:01:56]} 7. Nd2 {[%emt 0:04:31]} e6 {[%emt 0:05:10]} 8. Ngf3 {[%emt 0:04:13]} Bd6 {[%emt 0:03:56]} 9. Bd3 {[%emt 0:12:40]} h6 {[%emt 0:07:35]} 10. Bh4 {[%emt 0:01:44]} (10. Bxf6 $5 gxf6 11. O-O $11) 10... Bd7 {[%emt 0:05:04]} 11. Bg3 {[%emt 0:06:43]} Bxg3 {[%emt 0:07:12]} 12. hxg3 {[%emt 0:00:07]} Rc8 {[%emt 0:02:02]} 13. Qb3 {[%emt 0:01:56]} Qxb3 {[%emt 0:00:47]} 14. axb3 {[%emt 0:00:13]} a6 {[%emt 0:03:23]} 15. b4 {[%emt 0:01:10]} Ke7 {[%emt 0:01:03]} 16. Nb3 {[%emt 0:10:23]} Ne8 {[%emt 0:06:14]} 17. Nc5 {[%emt 0:02:51]} Nd6 $16 {[%emt 0:03:37]} 18. Ne5 {[%emt 0:01:21]} Be8 {[%emt 0:01:41]} 19. Kd2 {[%emt 0:07:18]} Nd8 {[%emt 0:13:14]} 20. g4 {[%emt 0:03:23]} f6 {[%emt 0:04:25]} 21. Ng6+ {[%emt 0:03:27]} Bxg6 {[%emt 0:00:10]} 22. Bxg6 {[%emt 0:00:13]} e5 {[%emt 0:03:09]} 23. Rae1 {[%emt 0:02:48]} Ne6 {[%emt 0:03:31]} 24. b3 {[%emt 0:05:00]} e4 {[%emt 0:06:54]} 25. Nxe6 {[%emt 0:04:26]} Kxe6 {[%emt 0:00:03]} 26. f3 {[%emt 0:00:46]} Rc7 {[%emt 0:04:25]} 27. fxe4 {[%emt 0:01:53]} dxe4 {[%emt 0:01:31]} 28. c4 {[%emt 0:02:17]} b6 {[%emt 0:00:00]} 29. Bxe4 {[%emt 0:00:00] Kd5} 1-0

[Event "WTCC-65 2018"]
[Site "Radebeul"]
[Date "2018.07.09"]
[Round "3"]
[White "Kargoll, Herbert"]
[Black "Bernard, Christophe"]
[Result "1-0"]
[ECO "B52"]
[WhiteElo "2230"]
[BlackElo "2253"]
[Annotator "NA"]
[PlyCount "160"]
[EventDate "2018.07.07"]
[EventType "team-tourn"]
[EventCountry "GER"]
[SourceTitle "playchess.com"]
[Source "ChessBase"]
[SourceQuality "1"]
[TimeControl "40/5400+30:1800+30"]

1. e4 {[%emt 0:00:00]} c5 {[%emt 0:00:00]} 2. Nf3 {[%emt 0:00:00]} d6 {[%emt 0:00:03]} 3. Bb5+ {[%emt 0:00:00]} Bd7 {[%emt 0:00:26]} 4. Bxd7+ {[%emt 0:00:00]} Qxd7 {[%emt 0:00:11]} 5. c4 {[%emt 0:00:00]} Nf6 {[%emt 0:00:15]} 6. Nc3 {[%emt 0:00:00] LiveBook: 1028 Games} Nc6 {[%emt 0:01:00]} 7. d4 {[%emt 0:01:11]} cxd4 {[%emt 0:00:03]} 8. Nxd4 {[%emt 0:00:07]} e6 {[%emt 0:01:46]} 9. O-O {[%emt 0:03:14]} Be7 {[%emt 0:06:18]} 10. b3 {[%emt 0:00:45]} O-O {[%emt 0:00:13] B52: Sicilian: Moscow Variation with 3...Bd7} 11. Be3 {[%emt 0:09:08]} a6 {[%emt 0:02:00]} (11... Rfd8 12. Qe2 a6 13. Rfd1 Rab8 14. Rac1 b6 15. Nxc6 Qxc6 16. f3 Qb7 17. a4 Rbc8 18. Bd4 Nd7 19. Qf2 Bf8 20. Rb1 Qc7 {½-½ (20) Spasov,V (2546)-Georgiev,K (2626) Palic 2014}) 12. Qe2 {[%emt 0:04:51]} Rab8 {[%emt 0:18:53]} 13. a4 $146 {[%emt 0:03:12]} ({Predecessor:} 13. Rfd1 Rfc8 14. Rac1 b6 15. f4 Qb7 16. Kh1 Nxd4 17. Bxd4 Rc6 18. e5 dxe5 19. fxe5 {0-1 (37) Shabanov,Y (2395)-Gurevich,V (2400) Uzhgorod 1988}) 13... Qc7 {[%emt 0:02:19]} 14. f3 {[%emt 0:18:37]} Nd7 {[%emt 0:03:31]} 15. Rab1 {[%emt 0:05:46]} Bf6 {[%emt 0:05:33]} 16. Qd2 {[%emt 0:00:36]} Rfd8 {[%emt 0:07:10]} 17. Rfc1 {[%emt 0:00:29]} Nxd4 {[%emt 0:01:39]} 18. Bxd4 {[%emt 0:00:10]} Bxd4+ {[%emt 0:01:07]} 19. Qxd4 {[%emt 0:00:05]} Qc5 {[%emt 0:00:11]} 20. Rd1 {[%emt 0:03:16]} Kf8 {[%emt 0:00:08]} 21. Kf1 {[%emt 0:04:43]} Qxd4 {[%emt 0:00:08]} 22. Rxd4 {[%emt 0:00:07]} Ne5 {[%emt 0:00:17]} 23. Ke2 {[%emt 0:06:58]} Ke7 {[%emt 0:00:13]} 24. Rd2 {[%emt 0:07:18]} Rbc8 {[%emt 0:01:38]} 25. f4 {[%emt 0:04:14]} Nc6 {[%emt 0:00:49]} 26. b4 {[%emt 0:00:52]} a5 {[%emt 0:00:32]} 27. bxa5 {[%emt 0:11:33]} Nxa5 {[%emt 0:00:25]} 28. Kd3 {[%emt 0:00:54]} Rd7 {[%emt 0:04:11]} 29. Rb4 {[%emt 0:05:17]} Rdc7 {[%emt 0:01:02]} 30. Nb5 {[%emt 0:03:20]} Rxc4 {[%emt 0:00:26]} 31. Rdb2 {[%emt 0:00:53]} Rxb4 {[%emt 0:05:21]} 32. Rxb4 {[%emt 0:00:00]} Nc6 {[%emt 0:00:18]} 33. Rb2 {[%emt 0:01:01]} Ra8 {[%emt 0:00:05]} 34. Nc3 {[%emt 0:00:08]} Ra7 {[%emt 0:00:02]} 35. Kc4 {[%emt 0:01:35]} Kd7 {[%emt 0:01:36]} 36. Rb6 {[%emt 0:01:15]} Kc7 {[%emt 0:00:53]} 37. Rb2 {[%emt 0:00:16]} Ra6 {[%emt 0:00:37]} 38. Nb5+ {[%emt 0:00:29]} Kd7 {[%emt 0:00:10]} 39. Nc3 {[%emt 0:00:37]} Na5+ {[%emt 0:01:04]} 40. Kb5 {[%emt 0:04:20]} Kc7 {[%emt 0:00:23]} 41. Kb4 {[%emt 0:30:28]} Nc6+ {[%emt 0:30:31]} 42. Kc4 {[%emt 0:00:32]} Ne7 {[%emt 0:05:59]} 43. Rd2 {[%emt 0:00:00]} d5+ {[%emt 0:00:00]} 44. Kb4 {[%emt 0:00:00]} dxe4 {[%emt 0:00:00]} 45. Nxe4 {[%emt 0:00:00]} Nd5+ {[%emt 0:00:00]} 46. Kb3 {[%emt 0:00:00]} Rb6+ {[%emt 0:00:00]} 47. Ka3 {[%emt 0:00:00]} h6 {[%emt 0:00:00]} 48. g3 {[%emt 0:00:00]} Rc6 {[%emt 0:00:00]} 49. Kb3 {[%emt 0:00:00]} f5 {[%emt 0:00:00]} 50. Nf2 {[%emt 0:00:00]} Rc3+ {[%emt 0:00:00]} 51. Kb2 {[%emt 0:00:00]} Rc4 {[%emt 0:00:00]} 52. Kb3 {[%emt 0:00:00]} Rb4+ {[%emt 0:00:00]} 53. Ka3 {[%emt 0:00:00]} Rb1 {[%emt 0:00:00]} 54. Nd3 {[%emt 0:00:00]} b6 {[%emt 0:00:00]} 55. Rc2+ {[%emt 0:00:00]} Kb7 {[%emt 0:00:00]} 56. Ne5 {[%emt 0:00:00]} Re1 {[%emt 0:00:00]} 57. Nc4 {[%emt 0:00:00]} Ka6 {[%emt 0:00:00]} 58. Kb3 {[%emt 0:00:00]} Ne3 {[%emt 0:00:00]} 59. Nxe3 {[%emt 0:03:25]} Rxe3+ {[%emt 0:00:00]} 60. Kb4 {[%emt 0:00:34]} Re4+ {[%emt 0:00:00]} 61. Kb3 {[%emt 0:00:12]} g5 {[%emt 0:00:00]} 62. fxg5 {[%emt 0:01:28]} hxg5 {[%emt 0:00:00]} 63. Rc8 {[%emt 0:00:07]} Re2 {[%emt 0:01:12]} 64. Ra8+ {[%emt 0:01:44]} Kb7 {[%emt 0:00:03]} 65. Rh8 {[%emt 0:00:12]} f4 {[%emt 0:00:17]} 66. gxf4 {[%emt 0:00:29]} gxf4 {[%emt 0:00:01]} 67. Rf8 {[%emt 0:00:55]} e5 {[%emt 0:00:04]} 68. h4 {[%emt 0:00:52]} Kc6 {[%emt 0:01:16]} 69. h5 {[%emt 0:01:21]} Rh2 $2 {[%emt 0:00:20]} 70. Rf6+ {[%emt 0:01:00]} Kd5 {[%emt 0:00:36]} 71. h6 {[%emt 0:00:11]} (71. Rxb6 Rxh5) 71... Rh3+ {[%emt 0:00:14]} 72. Kc2 {[%emt 0:01:29]} Kd4 {[%emt 0:00:16]} 73. Rxb6 {[%emt 0:00:23]} Rh2+ {[%emt 0:00:27]} 74. Kb3 {[%emt 0:00:37]} f3 {[%emt 0:00:03]} 75. Rf6 {[%emt 0:00:12]} e4 {[%emt 0:00:06]} 76. a5 {[%emt 0:00:12]} Ke5 {[%emt 0:02:19]} 77. a6 {[%emt 0:00:57]} Kxf6 {[%emt 0:00:12]} 78. a7 {[%emt 0:00:02]} f2 {[%emt 0:02:19]} 79. a8=Q {[%emt 0:00:11]} Rh3+ $18 {[%emt 0:00:02]} (79... e3 {is a better defense.} 80. Qf3+ Kg6) 80. Kb4 {[%emt 0:00:29]} Rf3 {[%emt 0:00:03]} 1-0

[Event "WTCC-65 2018"]
[Site "Radebeul"]
[Date "2018.07.09"]
[Round "3"]
[White "Oechslein, Rainer"]
[Black "Boidman, Yuri"]
[Result "0-1"]
[ECO "B01"]
[WhiteElo "2228"]
[BlackElo "2358"]
[Annotator "NA"]
[PlyCount "60"]
[EventDate "2018.07.07"]
[EventType "team-tourn"]
[EventCountry "GER"]
[SourceTitle "playchess.com"]
[Source "ChessBase"]
[SourceQuality "1"]
[TimeControl "40/5400+30:1800+30"]

1. e4 {[%emt 0:00:00]} d5 {[%emt 0:00:00]} 2. exd5 {[%emt 0:00:00]} Nf6 {[%emt 0:00:03]} 3. d4 {[%emt 0:00:00]} Bg4 {[%emt 0:00:09]} 4. Nf3 {[%emt 0:00:23]} Qxd5 {[%emt 0:00:09] LiveBook: 439 Games} 5. Be2 {[%emt 0:00:21]} Nc6 {[%emt 0:00:16]} 6. h3 {[%emt 0:00:44]} Qh5 {[%emt 0:02:42]} 7. O-O {[%emt 0:01:44]} O-O-O {[%emt 0:00:12]} 8. hxg4 {[%emt 0:06:04]} Nxg4 {[%emt 0:00:09]} 9. Bf4 {[%emt 0:00:05]} Qf5 {[%emt 0:06:13]} 10. Bg3 $18 {[%emt 0:01:26]} h5 {[%emt 0:01:58]} 11. c3 {[%emt 0:07:02]} e5 {[%emt 0:00:59]} 12. Na3 {[%emt 0:26:39]} e4 {[%emt 0:07:48]} 13. Qc2 {[%emt 0:12:47]} Qg6 {[%emt 0:14:10]} 14. Nc4 {[%emt 0:04:06]} f5 {[%emt 0:06:06]} 15. Nh4 {[%emt 0:08:40]} Qe6 {[%emt 0:25:42]} 16. f3 {[%emt 0:01:47]} exf3 {[%emt 0:00:16]} 17. Rxf3 {[%emt 0:03:04]} g6 {[%emt 0:02:05]} 18. Bd3 {[%emt 0:00:54]} Kb8 {[%emt 0:01:53]} 19. Re1 {[%emt 0:01:32]} Qg8 {[%emt 0:00:14]} 20. a4 {[%emt 0:05:10]} Be7 {[%emt 0:01:50]} 21. b4 {[%emt 0:01:15]} Bf6 {[%emt 0:02:12]} 22. b5 {[%emt 0:01:23]} Ne7 {[%emt 0:00:09]} 23. Ne5 {[%emt 0:03:18]} f4 {[%emt 0:03:05]} 24. Nhxg6 {[%emt 0:03:46]} Nxg6 {[%emt 0:04:47]} 25. Nxg6 {[%emt 0:00:21]} fxg3 {[%emt 0:00:47]} 26. Nxh8 {[%emt 0:00:26]} Qxh8 {[%emt 0:00:13]} 27. Rxg3 {[%emt 0:01:48]} Bh4 {[%emt 0:03:48]} 28. Ree3 {[%emt 0:02:11]} Qh6 {[%emt 0:03:58]} 29. Ref3 {[%emt 0:01:15]} Bxg3 {[%emt 0:00:41]} 30. Rxg3 {[%emt 0:00:03]} Qf4 {[%emt 0:00:08]} 0-1

[Event "WTCC-65 2018"]
[Site "Radebeul"]
[Date "2018.07.09"]
[Round "3"]
[White "Nehmert, Ulrich"]
[Black "Sharif, Mehrshad"]
[Result "0-1"]
[ECO "D02"]
[WhiteElo "2220"]
[BlackElo "2353"]
[Annotator "NA"]
[PlyCount "68"]
[EventDate "2018.07.07"]
[EventType "team-tourn"]
[EventCountry "GER"]
[SourceTitle "playchess.com"]
[Source "ChessBase"]
[SourceQuality "1"]
[TimeControl "40/5400+30:1800+30"]

1. d4 {[%emt 0:00:00]} d5 {[%emt 0:00:00]} 2. Nf3 {[%emt 0:00:00]} Nf6 {[%emt 0:00:00]} 3. Bf4 {[%emt 0:00:14]} c5 {[%emt 0:00:46]} 4. e3 {[%emt 0:02:33]} Nc6 {[%emt 0:00:40]} 5. c3 {[%emt 0:02:24]} Qb6 {[%emt 0:01:13]} 6. Qb3 {[%emt 0:14:17]} c4 7. Qc2 {[%emt 0:00:02]} Bf5 {[%emt 0:01:31] LiveBook: 423 Games} 8. Qc1 {[%emt 0:00:51]} e6 {[%emt 0:01:01]} 9. h3 {[%emt 0:00:14] D02: Damenbauernspiele} Be7 {[%emt 0:04:48]} 10. Nbd2 {[%emt 0:04:33]} O-O {[%emt 0:00:30]} 11. g4 {[%emt 0:00:30]} Bg6 {[%emt 0:07:54]} 12. Be2 $146 {[%emt 0:03:55]} ({Vorgänger:} 12. Nh4 Be4 13. Rg1 Nd7 14. Nhf3 Bxf3 15. Nxf3 f6 16. Qc2 e5 {1-0 (30) Henriquez Villagra,C (2501)-Del Castilho,M (2239) Aguascalientes 2018}) 12... Rfc8 {[%emt 0:01:27]} 13. Kf1 {[%emt 0:00:30]} Qd8 {[%emt 0:01:39]} 14. Kg2 {[%emt 0:23:35]} b5 {[%emt 0:01:51]} 15. a3 {[%emt 0:01:04]} a5 {[%emt 0:01:46]} 16. Ne5 {[%emt 0:03:27]} ({Besser ist} 16. Nh4 $15) 16... Nxe5 {[%emt 0:03:12]} 17. Bxe5 {[%emt 0:01:17]} b4 {[%emt 0:04:50]} 18. h4 {[%emt 0:03:24]} bxa3 {[%emt 0:04:50]} 19. bxa3 {[%emt 0:00:11]} Bd3 {[%emt 0:02:21]} 20. Qf1 {[%emt 0:01:38]} (20. Bd1 $17) 20... Nxg4 {[%emt 0:05:50]} 21. Bxd3 {[%emt 0:02:06]} cxd3 {[%emt 0:00:31]} 22. Qxd3 {[%emt 0:01:22]} Nxe5 {[%emt 0:02:02]} 23. dxe5 {[%emt 0:00:03]} Qc7 {[%emt 0:00:29]} 24. Nf3 $19 {[%emt 0:06:50]} Qxc3 {[%emt 0:00:45]} 25. Qxc3 {[%emt 0:01:21]} Rxc3 {[%emt 0:00:12]} 26. a4 {[%emt 0:00:03]} Rc4 {[%emt 0:08:58]} 27. h5 {[%emt 0:00:26]} Rb8 {[%emt 0:08:24]} 28. Nd4 {[%emt 0:02:14]} h6 {[%emt 0:01:50]} 29. Rhc1 {[%emt 0:00:35]} Rbc8 {[%emt 0:00:51]} 30. Rxc4 {[%emt 0:01:42]} Rxc4 {[%emt 0:02:17]} 31. Kf3 {[%emt 0:02:28]} Bc5 {[%emt 0:02:33]} 32. Nb5 {[%emt 0:04:07]} Bb4 {[%emt 0:04:57]} 33. Rb1 {[%emt 0:05:18]} Re4 {[%emt 0:06:37]} 34. Nd6 {[%emt 0:05:17]} Rxe5 {[%emt 0:03:04]} 0-1